Cogmind - Beta 10 @@@ ROGUE MODE // 2020.09.19 @ 15:05:06 Player: Palikka Result: Destroyed by B-75 Beast with Heavy Plasma Cannon Performance ------------- Evolutions (4) 2000 Regions Visited (9) 1800 Robots Destroyed (2) 10 Value Destroyed (54) 54 Prototype IDs (1) 20 Alien Tech Used (0) 0 Bonus (804) 804 TOTAL SCORE: 4688 Bonus ------- Pacifist 834 Friendly Fire -30 Cogmind --------- Core Integrity 0/850 Matter 166/300 Energy 99/100 System Corruption 1% Temperature Cool (12) Movement Core (50) Location -6/Extension Parts ------- > --- POWER (2) -------- (None) > --- PROPULSION (5) --- (None) > --- UTILITY (6) ------ Advanced Targeting Computer Launcher Guidance Computer Improved Propulsion Shielding Improved System Shield > --- WEAPON (2) ------- (None) > --- INVENTORY (4) ---- Nuclear Core Long-range Terrain Scanner Layered Medium Armor Plating Improved Grenade Launcher Peak State ------------ > --- POWER ------------ Nuclear Core > --- PROPULSION ------- Nuclear Pulse Thruster Nuclear Pulse Thruster > --- UTILITY ---------- Advanced Signal Interpreter Advanced Targeting Computer Launcher Guidance Computer Improved Propulsion Shielding Improved Propulsion Shielding > --- WEAPON ----------- (None) > --- INVENTORY -------- Long-range Terrain Scanner Improved Grenade Launcher [Rating: 29] Favorites ----------- Power Light Ion Engine Engine Light Ion Engine Power Core Nuclear Core Propulsion Cesium-ion Thruster Flight Unit Cesium-ion Thruster Utility Advanced Targeting Computer Device Drone Bay Processor Advanced Targeting Computer Hackware Improved System Shield Protection Improved Propulsion Shielding Weapon Mining Claw Ballistic Gun Light Assault Rifle Launcher Improved Grenade Launcher Slashing Weapon Mining Claw Build | -11 -10 -9 -9 -8 -7 -7 -7 -6 -6 ------- Run | Scr Mat Mat Sto Mat Fac Low Low Fac Ext Slots Evolved 8 | . . 2 . 2 2 . . 2 . Power 1 | . . . . . . . . 1 . Propulsion 3 | . . 1 . 1 1 . . . . Utility 4 | . . 1 . 1 1 . . 1 . Weapon . | . . . . . . . . . . Parts Attached 24 | 1 . . 1 8 2 1 . 11 . Power 4 | . . . . 2 . . . 2 . Engine 2 | . . . . 2 . . . . . Core 2 | . . . . . . . . 2 . Reactor . | . . . . . . . . . . Propulsion 6 | . . . . 2 . . . 4 . Treads . | . . . . . . . . . . Leg . | . . . . . . . . . . Wheel . | . . . . . . . . . . Hover . | . . . . . . . . . . Flight 6 | . . . . 2 . . . 4 . Utility 10 | . . . 1 3 2 . . 4 . Device 1 | . . . 1 . . . . . . Storage . | . . . . . . . . . . Processor 3 | . . . . 1 1 . . 1 . Hackware 1 | . . . . . . . . 1 . Protection 5 | . . . . 2 1 . . 2 . Artifact . | . . . . . . . . . . Weapon 4 | 1 . . . 1 . 1 . 1 . Energy Gun . | . . . . . . . . . . Energy Cannon . | . . . . . . . . . . Ballistic Gun 1 | 1 . . . . . . . . . Ballistic Cannon . | . . . . . . . . . . Launcher 1 | . . . . . . 1 . . . Special Weapon . | . . . . . . . . . . Impact Weapon . | . . . . . . . . . . Slashing Weapon 2 | . . . . 1 . . . 1 . Piercing Weapon . | . . . . . . . . . . Special Melee Weapon . | . . . . . . . . . . Unidentified Prototypes 1 | . . . . . . . . 1 . Parts Lost 10 | . . . 1 2 . 2 . 3 2 Power 2 | . . . . 1 . 1 . . . Propulsion 5 | . . . . 1 . 1 . 2 1 Utility 1 | . . . . . . . . . 1 Weapon 2 | . . . 1 . . . . 1 . Highest Loss Streak 2 | . . . 1 1 . 2 . 2 2 Average Slot Usage (%) 28 | . 14 11 6 39 34 30 23 29 42 Engine 1 | . . . . 6 7 2 . . . Flight 5 | . . . . 11 7 3 . 5 4 Processor 10 | . . . . 7 11 15 15 14 20 Protection 5 | . . . . 7 7 7 7 4 11 Ballistic Gun 1 | . 14 11 6 . . . . . . Slashing Weapon 2 | . . . . 7 . . . 3 . Naked Turns 44 | . . . 27 17 . . . . . Heaviest Build 11 | 1 1 1 7 11 6 5 2 11 4 Greatest Support 16 | 3 3 3 3 12 6 6 3 16 8 Greatest Overweight (x) 2 | . . . 2 . . . . 1 1 Average Overweight (x) . | . . . . . . . . . . Largest Inventory Capacity 4 | 4 4 4 4 4 4 4 4 4 4 Average Capacity 4 | 4 4 4 4 4 4 4 4 4 4 Most Carried 4 | 4 4 4 4 4 4 4 4 4 4 Average Carried 3 | 3 4 4 4 3 3 3 4 3 4 Final Capacity 4 | 4 4 4 4 4 4 4 4 4 4 Final Carried 4 | 4 4 4 4 4 4 4 4 4 4 Class Distribution -------------------- 100% | Mutant Dominant Class ---------------- Mutant | -10/Materials Mutant | -9/Materials Mutant | -9/Storage Mutant | -8/Materials Mutant | -7/Factory Mutant | -7/Lower Caves Mutant | -7/Lower Caves Mutant | -6/Factory Mutant | -6/Extension Resources | -11 -10 -9 -9 -8 -7 -7 -7 -6 -6 ----------- Run | Scr Mat Mat Sto Mat Fac Low Low Fac Ext Matter Collected 275 | 210 . . 10 55 . . . . . Remotely . | . . . . . . . . . . Salvage Created 43 | . . . 10 . . 33 . . . Parts . | . . . . . . . . . . Haulers Intercepted . | . . . . . . . . . . Recyclers Shooed . | . . . . . . . . . . Parts Field Recycled . | . . . . . . . . . . Retrieved Matter . | . . . . . . . . . . Parts Self-Destructed . | . . . . . . . . . . Prevented . | . . . . . . . . . . Kills | -11 -10 -9 -9 -8 -7 -7 -7 -6 -6 ------- Run | Scr Mat Mat Sto Mat Fac Low Low Fac Ext Combat Hostiles Destroyed 2 | . . . . . . 2 . . . AOE 2 | . . . . . . 2 . . . Classes Destroyed 1 | . . . . . . 1 . . . Swarmer 2 | . . . . . . 2 . . . Best Kill Streak 2 | . . . . . . 2 . . . Combat Bots Only 2 | . . . . . . 2 . . . Max Kills in Single Turn 2 | . . . . . . 2 . . . Gunslinging . | . . . . . . . . . . Exploded 2 | . . . . . . 2 . . . Melee . | . . . . . . . . . . Uniques/NPCs Destroyed . | . . . . . . . . . . Combat | -11 -10 -9 -9 -8 -7 -7 -7 -6 -6 -------- Run | Scr Mat Mat Sto Mat Fac Low Low Fac Ext Damage Taken 2202 | . . 59 410 439 19 144 . 521 610 Core 1463 | . . 32 345 118 19 76 . 357 516 Absorbed by Shields . | . . . . . . . . . . Core Remaining (%) 73 | 100 100 . 5 78 . . 86 . . Volleys Fired 11 | . . . 10 . . 1 . . . Largest 1 | . . . 1 . . 1 . . . Hottest 36 | . . . 20 . . 36 . . . Shots Fired 11 | . . . 10 . . 1 . . . Gun 10 | . . . 10 . . . . . . Cannon . | . . . . . . . . . . Launcher 1 | . . . . . . 1 . . . Special . | . . . . . . . . . . Kinetic 10 | . . . 10 . . . . . . Thermal . | . . . . . . . . . . Explosive 1 | . . . . . . 1 . . . Electromagnetic . | . . . . . . . . . . Robot Hit Streak 3 | . . . 3 . . 2 . . . Robot Miss Streak 4 | . . . 4 . . . . . . Penetration Max . | . . . . . . . . . . Secondary Targets . | . . . . . . . . . . Shots Hit Robots 5 | . . . 4 . . 1 . . . Core Hits 5 | . . . 2 . . 3 . . . Critical Hits . | . . . . . . . . . . Critical Kills . | . . . . . . . . . . Critical Parts Destroyed . | . . . . . . . . . . Melee Attacks 12 | . . . . . . . . 12 . Impact . | . . . . . . . . . . Slashing 12 | . . . . . . . . 12 . Piercing . | . . . . . . . . . . Sneak Attacks . | . . . . . . . . . . Combat Hostiles . | . . . . . . . . . . Follow-up Attacks . | . . . . . . . . . . Damage Inflicted 130 | . . . 30 . . 98 . 2 . Guns 30 | . . . 30 . . . . . . Cannons . | . . . . . . . . . . Explosions 98 | . . . . . . 98 . . . Melee . | . . . . . . . . . . Ramming 2 | . . . . . . . . 2 . Kinetic 30 | . . . 30 . . . . . . Thermal . | . . . . . . . . . . Explosive 98 | . . . . . . 98 . . . Electromagnetic . | . . . . . . . . . . Impact . | . . . . . . . . . . Slashing . | . . . . . . . . . . Piercing . | . . . . . . . . . . Highest Corruption 1 | . . . . . . . . 1 1 Average Corruption 1 | . . . . . . . . 1 1 Corruption Purged . | . . . . . . . . . . Overload Shots . | . . . . . . . . . . Overflow Damage . | . . . . . . . . . . Projectiles . | . . . . . . . . . . Explosions . | . . . . . . . . . . Melee . | . . . . . . . . . . Knockbacks . | . . . . . . . . . . Impact . | . . . . . . . . . . Kinetic . | . . . . . . . . . . Secondary . | . . . . . . . . . . Self-Inflicted Damage 1 | . . . . . . . . 1 . Shots . | . . . . . . . . . . Rammed 1 | . . . . . . . . 1 . Targets Rammed 1 | . . . . . . . . 1 . Kicked . | . . . . . . . . . . Crushed . | . . . . . . . . . . Highest Temperature 303 | . . . . . . . . 303 . Average Temperature 152 | . . . . . . . . 152 . Received Heat Transfer 636 | . . 18 141 135 9 6 . 210 117 Siege Activations . | . . . . . . . . . . Robots Corrupted . | . . . . . . . . . . Combat Hostiles . | . . . . . . . . . . Parts Fried . | . . . . . . . . . . Impact Corruptions . | . . . . . . . . . . Robots Melted . | . . . . . . . . . . Combat Hostiles . | . . . . . . . . . . Parts Melted . | . . . . . . . . . . Heat Transferred . | . . . . . . . . . . Parts Sabotaged . | . . . . . . . . . . Parts Stolen . | . . . . . . . . . . Parts Stripped . | . . . . . . . . . . Power Chain Reactions . | . . . . . . . . . . Missiles Intercepted . | . . . . . . . . . . Alert | -11 -10 -9 -9 -8 -7 -7 -7 -6 -6 ------- Run | Scr Mat Mat Sto Mat Fac Low Low Fac Ext Peak Influence 122 | . . 15 55 122 55 . . 98 72 Initial 55 | . . . 5 22 55 . . 26 42 Average 50 | . . 5 27 69 55 . . 59 47 Maximum Alert Level . | . . . . . . . . . . Low Security (%) 100 | 100 100 100 100 100 100 . . 100 100 Level 1 . | . . . . . . . . . . Level 2 . | . . . . . . . . . . Level 3 . | . . . . . . . . . . Level 4 . | . . . . . . . . . . Level 5 . | . . . . . . . . . . High Security . | . . . . . . . . . . Max Security . | . . . . . . . . . . Squads Dispatched 6 | . 1 . 1 3 . . . 1 . Investigation 2 | . 1 . . 1 . . . . . Extermination . | . . . . . . . . . . Reinforcement 4 | . . . 1 2 . . . 1 . Assault . | . . . . . . . . . . Garrison . | . . . . . . . . . . Intercept . | . . . . . . . . . . Construction Impeded 1 | . . . . . . . . 1 . Haulers Reinforced . | . . . . . . . . . . Stealth | -11 -10 -9 -9 -8 -7 -7 -7 -6 -6 --------- Run | Scr Mat Mat Sto Mat Fac Low Low Fac Ext Distress Signals 5 | . . . 1 1 . . . 3 . Communications Jammed . | . . . . . . . . . . Distress Signals . | . . . . . . . . . . Times Spotted 95 | . 1 2 20 32 3 4 . 22 11 Peak Tracking Total 19 | . 1 3 19 18 3 5 . 15 11 Tactical Retreats 9 | . . . . 3 . . . 6 . Traps | -11 -10 -9 -9 -8 -7 -7 -7 -6 -6 ------- Run | Scr Mat Mat Sto Mat Fac Low Low Fac Ext Traps Triggered 2 | . 1 . . . . . . 1 . Indirectly . | . . . . . . . . . . Trap Hack Attempts . | . . . . . . . . . . Triggered . | . . . . . . . . . . Disarmed . | . . . . . . . . . . Reprogrammed . | . . . . . . . . . . Reused . | . . . . . . . . . . Traps Extracted . | . . . . . . . . . . Installed . | . . . . . . . . . . Triggered . | . . . . . . . . . . Machines | -11 -10 -9 -9 -8 -7 -7 -7 -6 -6 ---------- Run | Scr Mat Mat Sto Mat Fac Low Low Fac Ext Machines Disabled . | . . . . . . . . . . Max in Single Turn . | . . . . . . . . . . Machines Sabotaged . | . . . . . . . . . . Garrisons Compromised . | . . . . . . . . . . Overloaded Fab Kills . | . . . . . . . . . . Fab Network Shutdowns . | . . . . . . . . . . Hacking | -11 -10 -9 -9 -8 -7 -7 -7 -6 -6 --------- Run | Scr Mat Mat Sto Mat Fac Low Low Fac Ext Machines Accessed 9 | . . 1 1 3 2 . . 2 . Terminals 9 | . . 1 1 3 2 . . 2 . Fabricators . | . . . . . . . . . . Repair Stations . | . . . . . . . . . . Recycling Units . | . . . . . . . . . . Scanalyzers . | . . . . . . . . . . Garrison Access . | . . . . . . . . . . Total Hacks 16 | . . 1 2 7 2 . . 4 . Successful 2 | . . . 1 1 . . . . . Failed 14 | . . 1 1 6 2 . . 4 . Catastrophic 3 | . . 1 . 1 1 . . . . Database Lockouts . | . . . . . . . . . . Manual 12 | . . 1 . 5 2 . . 4 . Terminals 16 | . . 1 2 7 2 . . 4 . Fabricators . | . . . . . . . . . . Repair Stations . | . . . . . . . . . . Recycling Units . | . . . . . . . . . . Scanalyzers . | . . . . . . . . . . Garrison Access . | . . . . . . . . . . Terminal Hacks 2 | . . . 1 1 . . . . . Open Door 1 | . . . 1 . . . . . . Branch Access Points 1 | . . . . 1 . . . . . Fabricator Hacks . | . . . . . . . . . . Repair Station Hacks . | . . . . . . . . . . Recycling Unit Hacks . | . . . . . . . . . . Scanalyzer . | . . . . . . . . . . Garrison Access Hacks . | . . . . . . . . . . Unauthorized Hacks . | . . . . . . . . . . Terminals . | . . . . . . . . . . Fabricators . | . . . . . . . . . . Repair Stations . | . . . . . . . . . . Recycling Units . | . . . . . . . . . . Scanalyzers . | . . . . . . . . . . Garrison Access . | . . . . . . . . . . Data Cores Recovered . | . . . . . . . . . . Used . | . . . . . . . . . . Hacking Detections 5 | . . 1 . 1 2 . . 1 . Full Trace Events 1 | . . . . 1 . . . . . Feedback Events . | . . . . . . . . . . Feedback Blocked . | . . . . . . . . . . Robot Schematics Acquired . | . . . . . . . . . . Robots Built . | . . . . . . . . . . Matter . | . . . . . . . . . . Time . | . . . . . . . . . . Total Robot Build Rating . | . . . . . . . . . . Part Schematics Acquired . | . . . . . . . . . . Parts Built . | . . . . . . . . . . Matter . | . . . . . . . . . . Time . | . . . . . . . . . . Total Part Build Rating . | . . . . . . . . . . Parts Repaired . | . . . . . . . . . . Time . | . . . . . . . . . . Parts Recycled . | . . . . . . . . . . Recycled Matter . | . . . . . . . . . . Retrieved Matter . | . . . . . . . . . . Retrieved Components . | . . . . . . . . . . Parts Scanalyzed . | . . . . . . . . . . Part Schematics Acquired . | . . . . . . . . . . Parts Damaged . | . . . . . . . . . . Bothacking | -11 -10 -9 -9 -8 -7 -7 -7 -6 -6 ------------ Run | Scr Mat Mat Sto Mat Fac Low Low Fac Ext Used RIF Installer . | . . . . . . . . . . Robots Hacked . | . . . . . . . . . . Non-combat . | . . . . . . . . . . Combat . | . . . . . . . . . . Robot Hacks Applied . | . . . . . . . . . . Relay Couplers Released . | . . . . . . . . . . Robots Rewired . | . . . . . . . . . . Allies Hacked . | . . . . . . . . . . Hacks Repelled . | . . . . . . . . . . Allies | -11 -10 -9 -9 -8 -7 -7 -7 -6 -6 -------- Run | Scr Mat Mat Sto Mat Fac Low Low Fac Ext Total Allies . | . . . . . . . . . . Largest Group . | . . . . . . . . . . Highest-Rated Group . | . . . . . . . . . . Highest-Rated Ally . | . . . . . . . . . . Total Orders . | . . . . . . . . . . Ally Attacks . | . . . . . . . . . . Total Damage . | . . . . . . . . . . Kills . | . . . . . . . . . . Allies Corrupted . | . . . . . . . . . . Allies Melted . | . . . . . . . . . . Intel | -11 -10 -9 -9 -8 -7 -7 -7 -6 -6 ------- Run | Scr Mat Mat Sto Mat Fac Low Low Fac Ext Robot Analysis Total . | . . . . . . . . . . Derelict Logs Recovered 1 | . . . . . . . 1 . . Drone Launches 2 | . . . 2 . . . . . . Drone Recoveries . | . . . . . . . . . . Exploration | -11 -10 -9 -9 -8 -7 -7 -7 -6 -6 ------------- Run | Scr Mat Mat Sto Mat Fac Low Low Fac Ext Turns Passed 836 | 25 36 18 83 148 64 94 37 284 47 Spaces Moved 1673 | 36 71 35 124 318 148 207 74 550 110 Core 573 | 36 71 35 124 67 . 73 74 76 17 Treads . | . . . . . . . . . . Legs . | . . . . . . . . . . Wheels . | . . . . . . . . . . Hover . | . . . . . . . . . . Flight 1100 | . . . . 251 148 134 . 474 93 Fastest Speed 37 | 50 50 50 50 37 40 40 50 37 40 Average Speed 43 | 50 50 50 50 40 40 43 50 41 42 Slowest Speed 150 | 50 50 50 150 50 40 50 50 100 100 Overloaded Moves . | . . . . . . . . . . Propulsion Burnouts . | . . . . . . . . . . Robots Hopped 19 | . . . . 8 1 . . 10 . Cave-ins Triggered . | . . . . . . . . . . Exploration Rate (%) 24 | 3 20 5 44 51 6 52 11 23 26 Regions Visited 9 Branch Regions 4 Pre-discovered Areas . | . . . . . . . . . . Known Exits Taken 1 | . . . . . . . . 1 . Unknown Exits Taken 8 | 1 1 1 1 1 1 1 1 . . Scrap Searched 1 | . . . . . . 1 . . . Spaces Dug 2 | . . . . . . . . 2 . Terrain Destroyed 9 | . . . . . . 7 . 2 . Melee 2 | . . . . . . . . 2 . Projectile . | . . . . . . . . . . AOE 7 | . . . . . . 7 . . . Terrain Rammed . | . . . . . . . . . . Walls Destroyed . | . . . . . . . . . . Machines Disabled . | . . . . . . . . . . Actions | -11 -10 -9 -9 -8 -7 -7 -7 -6 -6 --------- Run | Scr Mat Mat Sto Mat Fac Low Low Fac Ext Total 1726 | 42 70 34 135 329 151 209 73 572 111 Wait 3 | . . . . 3 . . . . . Move 1627 | 35 70 34 123 301 145 206 73 530 110 Hop 18 | . . . . 8 1 . . 9 . Pick Up 13 | 5 . . . 4 1 . . 3 . Fast Attach 16 | 1 . . 1 6 2 . . 6 . Attach 8 | . . . . 2 . 1 . 5 . Detach 6 | . . . . 1 . 1 . 4 . Swap . | . . . . . . . . . . Drop 11 | 1 . . 1 4 2 . . 2 1 Fire 11 | . . . 10 . . 1 . . . Melee 12 | . . . . . . . . 12 . Ram 1 | . . . . . . . . 1 . Kick . | . . . . . . . . . . Crush . | . . . . . . . . . . Escape Stasis . | . . . . . . . . . . Rewire . | . . . . . . . . . . Trap . | . . . . . . . . . . Miscellaneous . | . . . . . . . . . . Route ------- -11/Scrapyard -10/Materials -9/Materials -9/Storage -8/Materials -7/Factory -7/Lower Caves -7/Lower Caves -6/Factory (discovered 2 exits: *Low / *Ext) -6/Extension History --------- Turn | Location | Event 2 | -11/Scrapyard | Met Revision 17 14 | -11/Scrapyard | Discovered new exit (range 15) 26 | -11/Scrapyard | Entered Materials 54 | -10/Materials | Discovered new exit (range 15) 62 | -10/Materials | Entered another Materials area 62 | -9/Materials | Evolved 2 slots: Propulsion x1, Utility x1 73 | -9/Materials | Discovered new exit (range 14) 80 | -9/Materials | Entered Storage 145 | -9/Storage | Core integrity fell below 50% 156 | -9/Storage | Core integrity fell below 20% 161 | -9/Storage | Discovered new exit (range 6) 163 | -9/Storage | Entered Materials 163 | -8/Materials | Evolved 2 slots: Propulsion x1, Utility x1 305 | -8/Materials | Discovered new exit (range 15) 311 | -8/Materials | Entered Factory 311 | -7/Factory | Evolved 2 slots: Propulsion x1, Utility x1 321 | -7/Factory | Build established: Mutant 370 | -7/Factory | Discovered new exit (range 14) 375 | -7/Factory | Entered Lower Caves 429 | -7/Lower Caves | Attracted the attention of an 0b10 checkpoint 466 | -7/Lower Caves | Discovered new exit (range 4) 469 | -7/Lower Caves | Entered another Lower Caves area 497 | -7/Lower Caves | Encountered a Warlord checkpoint 498 | -7/Lower Caves | Discovered new exit (range 5) 502 | -7/Lower Caves | Learned Factory terminal intel 506 | -7/Lower Caves | Entered Factory 506 | -6/Factory | Evolved 2 slots: Power x1, Utility x1 507 | -6/Factory | Loaded intel: 21 terminal locations 579 | -6/Factory | Spotted B-75 Beast 759 | -6/Factory | Discovered new exit (range 4) 760 | -6/Factory | Identified exit to Lower Caves 775 | -6/Factory | Discovered new exit (range 14) 783 | -6/Factory | Identified exit to Extension 790 | -6/Factory | Entered Extension 822 | -6/Extension | Spotted B-75 Beast 825 | -6/Extension | Spotted B-75 Beast 829 | -6/Extension | Core integrity fell below 50% 833 | -6/Extension | Core integrity fell below 20% 837 | -6/Extension | Destroyed by B-75 Beast with Heavy Plasma Cannon Last Messages --------------- 00738_ Acquired Nuclear Pulse Thruster. 00754_ Nuclear Pulse Thruster destroyed. 00759_ EXIT=FOUND 00760_ EXIT=IDENTIFIED: LOWER CAVES 00771_ Acquired Prototype Flight Unit. 00771_ Identified Cld. Cesium-ion Thruster. 00771_ Malfunction: Heat surge (+337). 00773_ Dropped Faulty Cld. Cesium-ion Thruster. 00775_ EXIT=FOUND 00779_ Acquired Lyr. Medium Armor Plating. 00783_ EXIT=IDENTIFIED: EXTENSION 00786_ Acquired Imp. System Shield. LOCATION=EXTENSION GOAL=ESCAPE 00828_ Nuclear Pulse Thruster destroyed. 00829_ Dropped Imp. Propulsion Shielding. 00831_ U-05 Engineer destroyed. 00832_ Knocked back. 00832_ Adv. Signal Interpreter destroyed. 00834_ Knocked back. Map ----- +----------------------------------------------------+ | ?????????????????????????????????????????????????? | | ?????????????????????????????????????????????????? | | ?????????????????????????????????????????????????? | | ?????????????????????????????????????????????????? | | ?????????????????????????????????????????????????? | | ?????????????????????????????????????????????????? | | ?????????????????????????????????????????????????? | | ?????????????????????????????????????????????????? | | ???????? ????????????????????????????????????????? | | ???????? ????????????????????????????????????????? | | ???????? #???????????????????????????????????????? | | ???????# #???????????????????????????????????????? | | ???????# #????????#??????????????????????????????? | | ???????# #????????# ?????????????????????????????? | | ???????# #?######?# #????????????????????????????? | | ?????### ### ## ### ##???????????????????????????? | | ?????#"" "" "" ""#??????????????????????????? | | ?????# " " Y "w" #??????????????????????????? | | ?????# #??????????????????????????? | | ?????# #??????????????????????????? | | ###### #################??????????? | | ?????????? | | ?????????? | | R ????????? | | | ????????? | | =%* @ ????????? | | ###### ! BB ############???????????????? | | ?????# #??????????????????????????? | | ?????# ##?????????????????????????? | | ?????# "#?????????????????????????? | | ?????# ##?????????????????????????? | | ?????######T#"""#######??????????????????????????? | | ??????????###????????????????????????????????????? | | ?????????????????????????????????????????????????? | | | | | | | | | | | | | | | | | | | | | | | | | | | | | | | | | +----------------------------------------------------+ Best States ------------- Heat Dissipation 37 Energy Generation 14 Energy Capacity 240 Matter Stores 300 Matter Capacity 300 Sight Range 16 Terrain Scan Density 10 Armor Coverage 300 Propulsion Shielding 66 Evasion (%) 62 Targeting Accuracy 8 Launcher Accuracy 20 Defensive Hacking 12 Item Schematics ----------------- None Robot Schematics ------------------ None Fabricated ------------ Nothing Alien Tech Used ----------------- None Achievements -------------- None Challenges ------------ None Game ------ Seed NetworkTerrainSystem Manual? 0 Play Time 00:14:20 Cumulative 268.7 hours Start 2020.09.19 @ 14:51:28 End 2020.09.19 @ 15:05:06 Sessions 1 Manual Loads 0 Difficulty Rogue Special Mode None Game No. 379 Rogue 379 Adventurer 0 Explorer 0 Win Type - Total 28 Types 19/0/6/3/0/0/0/0/0 Lore% 84 Gallery% 80 Achievement% 48 Wizard Run 0 Options --------- ASCII 0 Keyboard 1 Movement Numpad Keybinds 0 Fullscreen 1 Font 24/Smallcaps Map View 76x50 Tactical HUD 1 Map Filters NONE Filters NONE Steam 1 RUN: 3d1d8fb0-2ed8-4942-9557-ff45eedb1119